Cogmind - Beta 12 @@@ ROGUE MODE // 2023.03.27 @ 10:04:30 Player: ZLD1 Result: Destroyed by B-36 Bruiser with Hammer Performance ------------- Evolutions (2) 1000 Regions Visited (5) 1000 Robots Destroyed (20) 100 Value Destroyed (636) 636 Prototype IDs (25) 500 Alien Tech Used (0) 0 Bonus (300) 300 TOTAL SCORE: 3536 Bonus ------- Aligned with FarCom 300 Cogmind --------- Core Integrity 0/550 Matter 256/300 Energy 100/100 System Corruption 5% Temperature Cool (18) Movement Core (50) Location -8/Materials Parts ------- > --- POWER (2) -------- (None) > --- PROPULSION (4) --- (None) > --- UTILITY (2) ------ (None) > --- WEAPON (3) ------- (None) > --- INVENTORY (5) ---- Armored Treads Cesium-ion Thruster Seismic Detector Weapon Shielding Long-range Tractor Beam Peak State ------------ > --- POWER ------------ Light Nuclear Core Light Nuclear Core > --- PROPULSION ------- Flying Fortress v7 > --- UTILITY ---------- Advanced Weight Redist. System Makeshift ECM Suite > --- WEAPON ----------- Improved EM Shotgun Pulse Rifle Katana > --- INVENTORY -------- Armored Treads Cesium-ion Thruster Seismic Detector Weapon Shielding Long-range Tractor Beam [Rating: 54] Favorites ----------- Power Light Nuclear Core Engine Light Ion Engine Power Core Light Nuclear Core Propulsion Aluminum Leg Leg Aluminum Leg Flight Unit Flying Fortress v7 Utility Small Storage Unit Device Makeshift ECM Suite Storage Small Storage Unit Weapon Katana Energy Gun Medium Laser Ballistic Gun Light Assault Rifle Slashing Weapon Katana Build | -11 -10 -10 -10 -9 -8 ------- Run | Jun Mat Min Exi Min Mat Slots Evolved 4 | . . . . . 4 Power 1 | . . . . . 1 Propulsion 2 | . . . . . 2 Utility . | . . . . . . Weapon 1 | . . . . . 1 Parts Attached 37 | 8 . 6 3 6 14 Power 7 | 2 . . 1 2 2 Engine 5 | 2 . . 1 2 . Core 2 | . . . . . 2 Reactor . | . . . . . . Propulsion 12 | 2 . 4 . 2 4 Treads . | . . . . . . Leg 8 | 2 . 4 . 2 . Wheel . | . . . . . . Hover . | . . . . . . Flight 4 | . . . . . 4 Utility 4 | 1 . 1 . 1 1 Device 3 | . . 1 . 1 1 Storage 1 | 1 . . . . . Processor . | . . . . . . Hackware . | . . . . . . Protection . | . . . . . . Artifact . | . . . . . . Weapon 14 | 3 . 1 2 1 7 Energy Gun 10 | 2 . 1 1 1 5 Energy Cannon . | . . . . . . Ballistic Gun 2 | 1 . . 1 . . Ballistic Cannon . | . . . . . . Launcher . | . . . . . . Special Weapon . | . . . . . . Impact Weapon . | . . . . . . Slashing Weapon 2 | . . . . . 2 Piercing Weapon . | . . . . . . Special Melee Weapon . | . . . . . . Unidentified Prototypes 2 | . . . . . 2 Parts Lost 20 | . . 2 1 6 11 Power 5 | . . . 1 1 3 Propulsion 3 | . . 1 . 1 1 Utility 4 | . . . . 1 3 Weapon 8 | . . 1 . 3 4 Highest Loss Streak 7 | . . 1 1 3 7 To Critical Strikes . | . . . . . . Average Slot Usage (%) 76 | . 85 85 86 79 67 Engine 9 | . 14 14 11 12 4 Core 5 | . . . . . 11 Leg 13 | . 28 24 19 21 . Flight 3 | . . . . . 8 Device 11 | . . 4 14 11 14 Storage 9 | . 14 14 14 14 3 Energy Gun 16 | . 28 27 17 8 15 Ballistic Gun 3 | . . . 8 9 . Slashing Weapon 3 | . . . . . 9 Naked Turns 5 | . . . . . 5 Heaviest Build 29 | 14 14 16 16 16 29 Greatest Support 59 | 20 20 20 20 20 59 Greatest Overweight (x) 8 | 1 . 1 1 3 8 Average Overweight (x) . | . . . . . . Largest Inventory Capacity 8 | 8 8 8 8 8 8 Average Capacity 7 | 6 8 8 8 8 6 Most Carried 8 | 5 6 8 8 8 8 Average Carried 6 | 2 4 7 7 7 5 Final Capacity 8 | 8 8 8 8 8 5 Final Carried 8 | 2 6 8 8 7 5 Class Distribution -------------------- 71% | Mutant 28% | Scavenger-Mutant Dominant Class ---------------- Mutant | -10/Materials Mutant | -10/Mines Mutant | -10/Exiles Scavenger-Mutant | -9/Mines Mutant | -8/Materials Resources | -11 -10 -10 -10 -9 -8 ----------- Run | Jun Mat Min Exi Min Mat Matter Collected 461 | 203 75 55 . 87 41 Remotely . | . . . . . . Salvage Created 808 | . 49 175 . 219 365 Parts 35 | . 3 6 . 8 18 Haulers Intercepted . | . . . . . . Recyclers Shooed 2 | . . 2 . . . Parts Field Recycled . | . . . . . . Retrieved Matter . | . . . . . . Parts Self-Destructed . | . . . . . . Prevented . | . . . . . . Kills | -11 -10 -10 -10 -9 -8 ------- Run | Jun Mat Min Exi Min Mat Combat Hostiles Destroyed 19 | . 3 4 . 5 7 Guns 18 | . 3 3 . 5 7 Classes Destroyed 5 | . 1 1 . 1 2 Recycler 1 | . . . . 1 . Swarmer 6 | . 3 . . 3 . Grunt 11 | . . 4 . 2 5 Duelist 1 | . . . . . 1 Sentry 1 | . . . . . 1 Best Kill Streak 3 | . 3 1 . 3 3 Combat Bots Only 3 | . 3 1 . 3 3 Max Kills in Single Turn 1 | . 1 1 . 1 1 Gunslinging . | . . . . . . Exploded . | . . . . . . Melee . | . . . . . . Uniques/NPCs Destroyed . | . . . . . . Combat | -11 -10 -10 -10 -9 -8 -------- Run | Jun Mat Min Exi Min Mat Damage Taken 3113 | . 72 517 102 543 1879 Core 764 | . 18 81 23 90 552 Absorbed by Shields . | . . . . . . Core Remaining (%) 57 | 100 . . . 15 . Volleys Fired 77 | . 5 25 . 28 19 Largest 2 | . 2 2 . 2 2 Hottest 119 | . 100 100 . 85 119 Shots Fired 131 | . 10 48 . 39 34 Gun 131 | . 10 48 . 39 34 Cannon . | . . . . . . Launcher . | . . . . . . Special . | . . . . . . Kinetic 27 | . . . . 27 . Thermal 92 | . 10 48 . 12 22 Explosive . | . . . . . . Electromagnetic 12 | . . . . . 12 Robot Hit Streak 16 | . 3 6 . 9 16 Robot Miss Streak 3 | . 1 3 . 2 1 Penetration Max . | . . . . . . Secondary Targets 1 | . . . . 1 . Max Gunslinging Chain 1 | . . . . 1 . Shots Hit Robots 97 | . 6 32 . 26 33 Core Hits 44 | . 3 9 . 12 20 Critical Kills . | . . . . . . Critical Parts Destroyed 1 | . . . . 1 . Critical Strikes 5 | . . 2 . 2 1 Burn 4 | . . 2 . 1 1 Destroy 1 | . . . . 1 . Melee Attacks 3 | . . . . . 3 Impact . | . . . . . . Slashing 3 | . . . . . 3 Piercing . | . . . . . . Sneak Attacks . | . . . . . . Combat Hostiles . | . . . . . . Follow-up Attacks . | . . . . . . Damage Inflicted 1393 | . 77 404 . 301 611 Guns 1336 | . 74 399 . 301 562 Cannons . | . . . . . . Explosions . | . . . . . . Melee 49 | . . . . . 49 Ramming 8 | . 3 5 . . . Kinetic 160 | . . . . 160 . Thermal 925 | . 74 399 . 141 311 Explosive . | . . . . . . Electromagnetic 251 | . . . . . 251 Impact . | . . . . . . Slashing 49 | . . . . . 49 Piercing . | . . . . . . Highest Corruption 5 | . . . . . 5 Average Corruption 5 | . . . . . 5 Corruption Purged . | . . . . . . Corruption Blocked . | . . . . . . Overload Shots . | . . . . . . Overflow Damage . | . . . . . . Projectiles . | . . . . . . Explosions . | . . . . . . Melee . | . . . . . . Knockbacks . | . . . . . . Impact . | . . . . . . Kinetic . | . . . . . . Secondary . | . . . . . . Self-Inflicted Damage . | . . . . . . Shots . | . . . . . . Rammed . | . . . . . . Targets Rammed 2 | . 1 1 . . . Kicked 2 | . 1 1 . . . Crushed . | . . . . . . Highest Temperature 381 | . 195 369 . 25 381 Average Temperature 155 | . 99 191 . 7 160 Received Heat Transfer 1119 | . . 294 18 105 702 Effects 4 | . . 1 . . 3 Energy Bleed 2 | . . 1 . . 1 Interference 2 | . . . . . 2 Siege Activations . | . . . . . . Robots Corrupted . | . . . . . . Combat Hostiles . | . . . . . . Parts Fried 2 | . . . . . 2 Impact Corruptions . | . . . . . . Robots Melted 1 | . . 1 . . . Combat Hostiles 1 | . . 1 . . . Parts Melted 5 | . . 3 . . 2 Heat Transferred 2738 | . 222 1332 . 407 777 Parts Sabotaged . | . . . . . . Parts Stolen . | . . . . . . Parts Stripped . | . . . . . . Power Chain Reactions . | . . . . . . Missiles Intercepted . | . . . . . . Alert | -11 -10 -10 -10 -9 -8 ------- Run | Jun Mat Min Exi Min Mat Peak Influence 113 | . 86 113 . 110 91 Initial 33 | . . 33 . . 11 Average 57 | . 62 83 . 68 46 Maximum Alert Level . | . . . . . . Low Security (%) 100 | 100 100 100 . 100 100 Level 1 . | . . . . . . Level 2 . | . . . . . . Level 3 . | . . . . . . Level 4 . | . . . . . . Level 5 . | . . . . . . High Security . | . . . . . . Max Security . | . . . . . . Squads Dispatched 3 | . 1 . . . 2 Investigation . | . . . . . . Extermination . | . . . . . . Reinforcement 3 | . 1 . . . 2 Assault . | . . . . . . Garrison . | . . . . . . Intercept . | . . . . . . Searches Triggered . | . . . . . . Construction Impeded . | . . . . . . Haulers Reinforced . | . . . . . . Active Scanning Responses . | . . . . . . Cargo Convoy Interrupts . | . . . . . . Stealth | -11 -10 -10 -10 -9 -8 --------- Run | Jun Mat Min Exi Min Mat Distress Signals . | . . . . . . Communications Jammed . | . . . . . . Distress Signals . | . . . . . . Times Spotted 47 | . 4 4 3 10 26 Peak Tracking Total 10 | . 3 2 5 3 10 Tactical Retreats 3 | . . . 1 1 1 Traps | -11 -10 -10 -10 -9 -8 ------- Run | Jun Mat Min Exi Min Mat Traps Triggered . | . . . . . . Indirectly . | . . . . . . Trap Hack Attempts . | . . . . . . Triggered . | . . . . . . Disarmed . | . . . . . . Reprogrammed . | . . . . . . Reused . | . . . . . . Traps Extracted . | . . . . . . Installed . | . . . . . . Triggered . | . . . . . . Machines | -11 -10 -10 -10 -9 -8 ---------- Run | Jun Mat Min Exi Min Mat Machines Disabled . | . . . . . . Max in Single Turn . | . . . . . . Machines Repaired . | . . . . . . Machines Sabotaged . | . . . . . . Overloaded Fab Kills . | . . . . . . Hacking | -11 -10 -10 -10 -9 -8 --------- Run | Jun Mat Min Exi Min Mat Machines Accessed 3 | . . . 3 . . Terminals . | . . . . . . Fabricators . | . . . . . . Repair Stations . | . . . . . . Recycling Units . | . . . . . . Scanalyzers . | . . . . . . Garrison Access . | . . . . . . Total Hacks 33 | . . . 33 . . Successful 33 | . . . 33 . . Failed . | . . . . . . Catastrophic . | . . . . . . Database Lockouts . | . . . . . . Manual 1 | . . . 1 . . Terminals . | . . . . . . Fabricators . | . . . . . . Repair Stations . | . . . . . . Recycling Units . | . . . . . . Scanalyzers . | . . . . . . Garrison Access . | . . . . . . Terminal Hacks 33 | . . . 33 . . Record 32 | . . . 32 . . EX-Prototype ID Bank 1 | . . . 1 . . Fabricator Hacks . | . . . . . . Repair Station Hacks . | . . . . . . Recycling Unit Hacks . | . . . . . . Scanalyzer . | . . . . . . Garrison Access Hacks . | . . . . . . Unauthorized Hacks . | . . . . . . Terminals . | . . . . . . Fabricators . | . . . . . . Repair Stations . | . . . . . . Recycling Units . | . . . . . . Scanalyzers . | . . . . . . Garrison Access . | . . . . . . Data Cores Recovered . | . . . . . . Used . | . . . . . . Hacking Detections . | . . . . . . Full Trace Events . | . . . . . . Feedback Events . | . . . . . . Feedback Blocked . | . . . . . . Robot Schematics Acquired . | . . . . . . Robots Built . | . . . . . . Authchips . | . . . . . . Time . | . . . . . . Total Robot Build Rating . | . . . . . . Part Schematics Acquired . | . . . . . . Parts Built . | . . . . . . Authchips . | . . . . . . Time . | . . . . . . Total Part Build Rating . | . . . . . . Parts Repaired . | . . . . . . Time . | . . . . . . Parts Recycled . | . . . . . . Recycled Matter . | . . . . . . Retrieved Matter . | . . . . . . Retrieved Components . | . . . . . . Parts Scanalyzed . | . . . . . . Part Schematics Acquired . | . . . . . . Parts Damaged . | . . . . . . Bothacking | -11 -10 -10 -10 -9 -8 ------------ Run | Jun Mat Min Exi Min Mat Used RIF Installer . | . . . . . . Robots Hacked . | . . . . . . Non-combat . | . . . . . . Combat . | . . . . . . Robot Hacks Applied . | . . . . . . Relay Couplers Released . | . . . . . . Fabnet Peak Effective % . | . . . . . . Robots Rewired . | . . . . . . Allies Hacked . | . . . . . . Hacks Repelled . | . . . . . . Allies | -11 -10 -10 -10 -9 -8 -------- Run | Jun Mat Min Exi Min Mat Total Allies . | . . . . . . Largest Group . | . . . . . . Highest-Rated Group . | . . . . . . Highest-Rated Ally . | . . . . . . Total Orders . | . . . . . . Ally Attacks . | . . . . . . Total Damage . | . . . . . . Kills . | . . . . . . Allies Corrupted . | . . . . . . Allies Melted . | . . . . . . Intel | -11 -10 -10 -10 -9 -8 ------- Run | Jun Mat Min Exi Min Mat Robot Analysis Total . | . . . . . . Derelict Logs Recovered 2 | . . . . 2 . Drone Launches . | . . . . . . Drone Recoveries . | . . . . . . Exploration | -11 -10 -10 -10 -9 -8 ------------- Run | Jun Mat Min Exi Min Mat Turns Passed 2451 | 60 157 284 363 580 1007 Spaces Moved 1181 | 50 112 132 268 370 249 Core 60 | 23 . . . 6 31 Treads . | . . . . . . Legs 935 | 27 112 132 268 364 32 Wheels . | . . . . . . Hover . | . . . . . . Flight 186 | . . . . . 186 Fastest Speed 50 | 50 120 120 120 120 50 Average Speed 122 | 90 120 130 132 135 98 Slowest Speed 450 | 120 120 190 190 200 450 Overloaded Moves . | . . . . . . Propulsion Burnouts . | . . . . . . Robots Hopped 1 | . . . . . 1 Cave-ins Triggered . | . . . . . . Exploration Rate (%) 34 | 5 28 29 58 65 24 Regions Visited 5 Branch Regions 3 Pre-discovered Areas 1 | . . . 1 . . Known Exits Taken . | . . . . . . Unknown Exits Taken 5 | 1 1 1 1 1 . Scrap Searched 1 | . . 1 . . . Spaces Dug . | . . . . . . Terrain Destroyed . | . . . . . . Melee . | . . . . . . Projectile . | . . . . . . AOE . | . . . . . . Terrain Rammed . | . . . . . . Walls Destroyed . | . . . . . . Machines Disabled . | . . . . . . Actions | -11 -10 -10 -10 -9 -8 --------- Run | Jun Mat Min Exi Min Mat Total 2046 | 62 124 195 278 414 973 Wait 708 | . 3 27 1 10 667 Move 1174 | 49 111 131 267 369 247 Hop 1 | . . . . . 1 Pick Up 24 | 5 4 2 1 1 11 Fast Attach 22 | 3 . 4 1 4 10 Attach 11 | 3 . . 2 2 4 Detach . | . . . . . . Swap 4 | 2 . 2 . . . Drop 20 | . . 3 6 . 11 Fire 77 | . 5 25 . 28 19 Melee 3 | . . . . . 3 Ram . | . . . . . . Kick 2 | . 1 1 . . . Crush . | . . . . . . Escape Stasis . | . . . . . . Rewire . | . . . . . . Trap . | . . . . . . Miscellaneous . | . . . . . . Route ------- -11/Junkyard -10/Materials -10/Mines (discovered 2 exits: [*Mat] / *Exi) -10/Exiles -9/Mines -8/Materials History --------- Turn | Location | Event 5 | -11/Junkyard | Discovered new exit (range 15) 61 | -11/Junkyard | Entered Materials 197 | -10/Materials | Discovered new exit (range 15) 218 | -10/Materials | Entered Mines 271 | -10/Mines | Met a Derelict bent on vengeance 329 | -10/Mines | Build established: Mutant 422 | -10/Mines | Discovered new exit (range 15) 498 | -10/Mines | Deemed a non-threat by the Exiles lab entrance 498 | -10/Mines | Discovered new exit (range 5) 502 | -10/Mines | Entered Exiles 531 | -10/Exiles | Met 8R-AWN 553 | -10/Exiles | Met EX-HEX 586 | -10/Exiles | Met EX-BIN 601 | -10/Exiles | Aligned with FarCom system 602 | -10/Exiles | Given EX-Vault access code 641 | -10/Exiles | Opened EX-Vault 655 | -10/Exiles | Found Flying Fortress v7 679 | -10/Exiles | Warned to stay clear of 0b10 Research branches 696 | -10/Exiles | Exiles lab attacked by MAIN.C 816 | -10/Exiles | Learned location of Zion (-7) 849 | -10/Exiles | Discovered new exit (range 14) 865 | -10/Exiles | Left Exiles lab with Flying Fortress v7 865 | -10/Exiles | Entered Mines 868 | -9/Mines | Core integrity fell below 50% 1114 | -9/Mines | Learned Materials terminal intel 1169 | -9/Mines | Learned Materials stockpile data 1224 | -9/Mines | Assembled infested the area 1228 | -9/Mines | Found a damaged Exp. Sensor Array with a note attached 1229 | -9/Mines | Assisted by a Guerilla fighting off Assembled 1258 | -9/Mines | Core integrity fell below 20% 1293 | -9/Mines | Lost 3 parts (1u2w) 1433 | -9/Mines | Discovered new exit (range 9) 1445 | -9/Mines | Entered Materials 1445 | -8/Materials | Evolved 4 slots: Power x1, Propulsion x2, Weapon x1 1447 | -8/Materials | Loaded intel: 12 terminal locations 2442 | -8/Materials | Core integrity fell below 50% 2451 | -8/Materials | Core integrity fell below 20% 2452 | -8/Materials | Destroyed by B-36 Bruiser with Hammer Last Messages --------------- 02311_ Imp. Heat Sink fried. 02311_ G-47 Trooper destroyed. 02325_ Critical hit (Burn: +37). 02329_ G-47 Trooper misfires. 02330_ Imp. EM Shotgun destroyed. 02338_ L-31 Rogue destroyed. 02342_ G-47 Trooper destroyed. 02350_ Acquired Katana. 02351_ Acquired 41 matter. 02412_ K-01 Serf collects debris. 02420_ Critical hit (Burn: +37). 02430_ L-31 Rogue suffers critical hit (Burn). 02432_ Flying Fortress v7 destroyed. 02442_ Lgt. Nuclear Core destroyed. 02443_ Katana destroyed. 02446_ Pulse Rifle destroyed. 02447_ Adv. Weight Redist. System destroyed. 02447_ System corrupted by crushing effect (+5). 02447_ Katana destroyed. 02447_ Mak. ECM Suite destroyed. Map ----- +----------------------------------------------------+ | | | | | | | ?????????????????????????????????????????????????? | | ?????????????????????????????????????????????????? | | ???????????????????????????????????????"""???????? | | ???????????????????????????????????????"T"???????? | | ?????????????????????????????????????????????????? | | ?????????????????????????????????????????????????? | | ?????????????????????????????????????????????????? | | ?????????????????????????????????????????????????? | | ?????????????????????????????????????????????????? | | ?????????????????????????????????????????????????? | | ?????????????????????????????????????????????????? | | ?????????????????????????????wT??????????????????? | | ?????????????????????????????????????????????????? | | ?????????????????????????????????????????????????? | | ?????????????????????????????????????????????????? | | ?????????????????????????????????????????????????? | | ???????????????################??????????????????? | | ???????????????# #??????????????????? | | ???????????????# """ #??????????????????? | | ??????????????## [[ """ #?????w????????????? | | ??????????????# [ g """ #??????????????????? | | ???????????????# g ggb #??????????????????? | | ???????????????# Y l@ = #??#???????????????? | | ????????????????#######+######## #???????????????? | | ???????????????????# ##??????????????? | | ???????????????????# #???T??????????? | | ???????????????????# ??????????? | | ???????????????????# """ """ ??????????? | | ???????????????????# "R" """ ? ???????????? | | ???????????????????# " " """ #??????????????? | | ???????????????????# #??????????????? | | ???????????????????### #??????????????? | | ?????????????????????# """ """ #??????????????? | | ?????????????????????# """ """ #??????????????? | | ??????????????###????# """ """ #??????????????? | | ??????????????#=###### #??????????????? | | ??????????????#=%%! %# #??????????????? | | ??????????????# ""% # ######+#/#??????????????? | | ??????????????# "T +% #???????????????????????? | | ??????????????#="" [ #% #????????????=??????????? | | ??????????????#!*[=!!# #???????????????????????? | | ??????????????#= = # #???????????????????????? | | ??????????????######## #???????????????????????? | | ?????????????????????# #???????????????????????? | | ?????????????????????# #???????????????????????? | | ?????????????????????# #???????????????????????? | | ?????????????????????# #########???????????????? | +----------------------------------------------------+ Best States ------------- Heat Dissipation 39 Energy Generation 23 Energy Capacity 250 Matter Stores 300 Matter Capacity 300 Sight Range 16 Terrain Scan Density 10 ECM Strength 2 Additional Mass Support 9 Evasion (%) 60 Item Schematics ----------------- None Robot Schematics ------------------ None Fabricated ------------ Nothing Alien Tech Used ----------------- None Achievements -------------- None Challenges ------------ None Game ------ Seed UtilityLaserWeb Manual? 0 Play Time 00:21:32 Cumulative 17.2 hours Start 2023.03.27 @ 09:33:19 End 2023.03.27 @ 10:04:30 Sessions 1 Manual Loads 0 Difficulty Rogue Special Mode None Game No. 40 Rogue 40 Adventurer 0 Explorer 0 Win Type - Total 0 Types 0/0/0/0/0/0/0/0/0 Lore% 20 Gallery% 25 Achievement% 17 Wizard Run 0 Options --------- ASCII 0 Keyboard 0 Movement Mouse Keybinds 0 Fullscreen 1 Font 24/Smallcaps Map View 64x52 Tactical HUD 1 Map Filters NONE Filters NONE Steam 1 RUN: 616865f9-d0f9-493c-8954-58d15d56f6ad